bitfinex/quotes_ETHUSD_20250906
["timestamp","ask_amount","ask_price","bid_price","bid_amount"]
[1757147001893,3.0,4305.5,4303.6,1.708]
[1757147001894,3.792,4304.6,4303.6,1.708]
[1757147002202,2.32343916,4304.0,4303.7,0.435]
[1757147002617,2.32343916,4304.0,4303.8,14.5]
[1757147002819,3.11543916,4304.0,4303.9,2.872]
[1757147003118,3.81228627,4304.0,4303.9,2.872]
[1757147004575,4.46861622,4304.0,4303.9,2.872]
[1757147005588,4.46861622,4304.0,4303.9,14.616]
[1757147006469,5.20751622,4304.0,4303.9,14.616]
[1757147006671,5.20751622,4304.0,4303.9,15.592]
[1757147006869,5.68211622,4304.0,4303.9,15.592]
[1757147007930,5.20751622,4304.0,4303.9,15.592]
[1757147009994,2.88407706,4304.0,4303.9,15.8139]
[1757147010308,2.32311675,4304.6,4303.9,16.4083]
[1757147010633,0.792,4304.5,4303.9,16.4083]
[1757147010995,0.792,4304.5,4304.0,14.5]
[1757147011204,0.792,4304.5,4304.1,3.851]
[1757147011409,0.792,4304.6,4304.4,0.2219]
[1757147011727,3.11509622,4304.6,4304.5,5.559]
[1757147011938,3.11509622,4304.6,4304.5,5.7809]
[1757147013405,3.11509622,4304.6,4304.5,5.559]
[1757147014601,3.54279622,4304.6,4304.5,5.559]
[1757147015334,3.11509622,4304.6,4304.5,5.559]
[1757147018738,3.11509622,4304.6,4304.5,5.7809]
[1757147019361,3.11509622,4304.6,4304.5,5.559]
[1757147022017,0.792,4304.6,4304.5,5.7809]
[1757147022219,0.792,4304.6,4304.5,6.232]
[1757147022529,0.793,4304.6,4304.5,5.7809]
[1757147022921,0.793,4304.6,4304.5,20.2809]
[1757147023523,0.001,4304.6,4304.5,20.2809]
[1757147024326,0.001,4304.6,4304.5,20.732]
[1757147024552,0.001,4304.6,4304.5,20.2809]
[1757147024855,0.001,4304.6,4304.5,20.732]
[1757147025932,0.001,4304.6,4304.5,20.2809]
[1757147027025,0.001,4304.6,4304.5,20.8707]
[1757147027534,0.001,4304.6,4304.5,6.3707]
[1757147028056,0.001,4304.6,4304.5,20.8707]
[1757147028623,0.001,4304.6,4304.5,20.732]
[1757147029045,0.001,4304.6,4304.5,20.8707]
[1757147029522,0.001,4304.6,4304.5,20.732]
[1757147032264,0.001,4304.6,4304.5,20.2809]
[1757147034382,0.3158,4304.6,4304.5,20.056]
[1757147034523,1.2265,4304.6,4304.5,20.056]
[1757147035537,0.7562,4304.6,4304.5,20.056]
[1757147035964,0.4414,4304.6,4304.5,20.056]
[1757147036931,0.7562,4304.6,4304.5,20.056]
[1757147038074,0.4414,4304.6,4304.5,20.056]
[1757147040000,0.7562,4304.6,4304.5,20.056]
[1757147040670,1.2265,4304.6,4304.5,20.056]
[1757147044413,1.2265,4304.6,4304.5,25.394]
[1757147045711,0.4414,4304.6,4304.5,25.394]
[1757147045917,0.001,4304.6,4304.5,25.394]
[1757147046713,0.001,4304.6,4304.5,25.6159]
[1757147049022,0.001,4304.6,4304.5,32.0219]
[1757147049720,0.001,4304.6,4304.5,34.34505019]
[1757147049890,0.001,4304.6,4304.5,64.83425019]
[1757147050287,0.001,4304.6,4304.5,64.43793272]
[1757147053385,0.001,4304.6,4304.5,64.92713272]
[1757147053807,0.001,4304.6,4304.5,65.06583272]
[1757147055520,0.001,4304.6,4304.5,64.92713272]
[1757147058011,0.001,4304.6,4304.5,34.92713272]
[1757147058318,0.001,4304.6,4304.5,64.92713272]
[1757147061002,0.001,4304.6,4304.5,34.92713272]
[1757147061208,0.001,4304.6,4304.5,64.92713272]
[1757147063135,0.001,4304.6,4304.5,34.92713272]
[1757147063327,0.001,4304.6,4304.5,64.92713272]
[1757147065036,0.001,4304.6,4304.5,68.06583272]
[1757147066524,1e-08,4304.8,4304.7,2.32304225]
[1757147066833,1e-08,4304.8,4304.7,39.19327267]
[1757147067033,1e-08,4304.8,4304.7,40.01984225]
[1757147067208,1e-08,4304.8,4304.7,54.51984225]
[1757147067613,1e-08,4304.8,4304.7,54.61269782]
[1757147072302,1e-08,4304.8,4304.7,24.61269782]
[1757147072717,1e-08,4304.8,4304.7,54.61269782]
[1757147075011,1e-08,4304.8,4304.7,54.72869782]
[1757147075211,0.00100001,4304.8,4304.7,54.72869782]
[1757147075411,0.00100001,4304.8,4304.7,70.81299782]
[1757147080661,0.00100001,4304.8,4304.7,56.29699782]
[1757147080864,0.00100001,4304.8,4304.7,54.58999782]
[1757147081227,0.00100001,4304.8,4304.7,54.72869782]
[1757147081665,1e-08,4305.3,4305.2,2.32277246]
[1757147081986,1e-08,4305.3,4305.2,39.16877246]
[1757147082279,1e-08,4305.3,4305.2,54.12602571]
[1757147082566,1e-08,4305.3,4305.2,24.21887008]
[1757147082928,1e-08,4305.3,4305.2,54.21887008]
[1757147085485,1e-08,4305.3,4305.2,70.43887008]
[1757147086043,1.25350001,4305.3,4305.2,66.25161683]
[1757147086275,1.25350001,4305.3,4305.2,70.09761683]
[1757147089657,1.25350001,4305.3,4305.2,40.09761683]
[1757147089858,1.25350001,4305.3,4305.2,70.09761683]
[1757147090167,1.25350001,4305.3,4305.2,55.58461683]
[1757147090368,0.77110001,4305.3,4305.2,55.58461683]
[1757147092089,0.77110001,4305.3,4305.2,53.87761683]
[1757147093463,1.25350001,4305.3,4305.2,50.87761683]
[1757147093871,1.25350001,4305.3,4305.2,23.87761683]
[1757147094087,1.25350001,4305.3,4305.2,53.87761683]
[1757147095400,1.25350001,4305.3,4305.2,68.39061683]
[1757147095704,1.25350001,4305.3,4305.2,70.09761683]
[1757147097006,1.25350001,4305.3,4305.2,40.09761683]
[1757147097306,1.25350001,4305.3,4305.2,70.09761683]
[1757147098003,1.25350001,4305.3,4305.2,40.09761683]
[1757147098210,1.25350001,4305.3,4305.2,70.09761683]
[1757147100067,1.25350001,4305.3,4305.2,66.25161683]
[1757147100272,1.25350001,4305.3,4305.2,70.09761683]
[1757147102108,1.25350001,4305.3,4305.2,40.09761683]
[1757147102279,1.25350001,4305.3,4305.2,70.09761683]
[1757147103113,1.25350001,4305.3,4305.2,40.09761683]
[1757147103314,1.25350001,4305.3,4305.2,63.25161683]
[1757147103485,1.25350001,4305.3,4305.2,66.88877246]
[1757147104412,1e-08,4305.3,4305.2,69.88877246]
[1757147104572,1e-08,4305.3,4305.2,70.68617246]
[1757147104771,1e-08,4305.3,4305.2,71.38249876]
[1757147105791,1e-08,4305.3,4305.2,70.92299876]
[1757147106616,1e-08,4305.3,4305.2,71.38249876]
[1757147107001,1e-08,4305.3,4305.2,68.74719876]
[1757147107228,1e-08,4305.3,4305.2,57.00819876]
[1757147109130,1e-08,4305.3,4305.2,55.30119876]
[1757147110050,1e-08,4305.3,4305.2,55.16249876]
[1757147110746,1e-08,4305.3,4305.2,54.70299876]
[1757147112447,1e-08,4305.3,4305.2,55.29519876]
[1757147112650,1e-08,4305.3,4305.2,55.15649876]
[1757147115545,1e-08,4305.3,4305.2,71.37649876]
[1757147116441,1e-08,4305.3,4305.2,38.60249876]
[1757147116642,1e-08,4305.3,4305.2,68.60249876]
[1757147117364,1e-08,4305.3,4305.2,68.14899876]
[1757147120332,1e-08,4305.3,4305.2,54.70299876]
[1757147120875,1e-08,4305.3,4305.2,54.48109876]
[1757147121232,0.001,4305.5,4305.4,2.32266456]
[1757147121564,0.001,4305.5,4305.4,39.16866456]
[1757147121765,0.3008,4305.5,4305.4,39.16866456]
[1757147121962,0.3008,4305.5,4305.4,54.12486456]
[1757147122175,0.756,4305.5,4305.4,50.27886456]
[1757147122381,0.756,4305.5,4305.4,54.12486456]
[1757147123283,1.2196,4305.5,4305.4,54.12486456]
[1757147125456,1.2196,4305.5,4305.4,70.34386456]
[1757147125653,1.2196,4305.5,4305.4,40.34386456]
[1757147125874,1.2196,4305.5,4305.4,70.34386456]
[1757147127551,1.2196,4305.5,4305.4,69.88766456]
[1757147127881,1.2196,4305.5,4305.4,66.04166456]
[1757147128083,1.2196,4305.5,4305.4,69.88766456]
[1757147135112,1.2196,4305.5,4305.4,39.88766456]
[1757147135289,1.2196,4305.5,4305.4,69.88766456]
[1757147141341,1.2196,4305.5,4305.4,66.04166456]
[1757147141554,1.2196,4305.5,4305.4,69.88766456]
[1757147143209,1.2196,4305.5,4305.4,39.88766456]
[1757147143408,1.2196,4305.5,4305.4,69.88766456]
[1757147144609,1.2196,4305.5,4305.4,39.88766456]
[1757147144840,1.34436,4305.5,4305.4,30.719]
[1757147145043,1.34436,4305.5,4305.4,34.565]
[1757147145431,1.34436,4305.5,4305.4,30.719]
[1757147145632,1.34436,4305.5,4305.4,34.565]
[1757147148670,1.34436,4305.5,4305.4,36.88766456]
[1757147149437,1.34436,4305.5,4305.4,34.565]
[1757147158611,1.34436,4305.5,4305.4,36.88766456]
[1757147158765,1.2196,4305.5,4305.4,36.88766456]
[1757147160294,1.2196,4305.5,4305.4,34.565]
[1757147160588,1.2196,4305.5,4305.4,36.88766456]
[1757147161660,0.3008,4305.5,4305.4,36.88766456]
[1757147162294,1.194,4305.5,4305.4,36.88766456]
[1757147163484,0.001,4305.5,4305.4,36.88766456]
[1757147164784,1.2024,4305.5,4305.4,36.88766456]
[1757147166787,0.7692,4305.5,4305.4,36.88766456]
[1757147166988,1.2024,4305.5,4305.4,36.88766456]
[1757147168600,0.7424,4305.5,4305.4,34.565]
[1757147168802,0.3092,4305.5,4305.4,34.565]
[1757147169378,0.3092,4305.5,4305.4,36.88766456]
[1757147171617,0.7674,4305.5,4305.4,34.565]
[1757147171807,1.2156,4305.5,4305.4,34.565]
[1757147174216,1.2156,4305.5,4305.4,31.791]
[1757147176486,2.13196,4305.5,4305.4,13.445]
[1757147176683,2.13196,4305.5,4305.4,17.291]
[1757147180133,2.13196,4305.5,4305.4,17.291]
[1757147182228,4.45457061,4305.5,4305.4,17.291]
[1757147182437,5.15120574,4305.5,4305.4,17.291]
[1757147188309,6.11466456,4305.4,4305.3,0.004]
[1757147188538,6.11466456,4305.4,4305.3,8.589]
[1757147188539,7.56423638,4305.4,4305.3,8.589]
[1757147188726,8.76563638,4305.4,4305.3,8.589]
[1757147195342,15.78563638,4305.4,4305.3,8.589]
[1757147210574,15.33743638,4305.4,4305.3,8.589]
[1757147210759,14.58423638,4305.4,4305.3,8.8901]
[1757147210945,14.58423638,4305.4,4305.3,9.3271]
[1757147212388,14.58423638,4305.4,4305.3,9.823]
[1757147212389,9.34266456,4305.4,4305.3,9.823]
[1757147212588,9.34266456,4305.4,4305.3,8.8901]
[1757147212589,12.34266456,4305.4,4305.3,8.8901]
[1757147212891,13.13466456,4305.4,4305.3,9.3271]
[1757147213049,13.13466456,4305.4,4305.3,9.823]
[1757147213490,13.13466456,4305.4,4305.3,9.3271]
[1757147213667,13.13566456,4305.4,4305.3,9.3271]
[1757147214452,7.813,4305.4,4305.3,9.3271]
[1757147214791,0.001,4305.4,4305.3,11.39671]
[1757147216580,0.001,4305.4,4305.3,25.89671]
[1757147216875,0.001,4305.4,4305.3,25.6971]
[1757147217550,0.001,4305.4,4305.3,26.63]
[1757147219288,0.001,4305.4,4305.3,26.1391]
[1757147219792,0.001,4305.4,4305.3,26.635]
[1757147220321,0.001,4305.4,4305.3,12.135]
[1757147220675,0.001,4305.4,4305.3,26.635]
[1757147221986,0.001,4305.4,4305.3,25.7021]
[1757147222187,0.001,4305.4,4305.3,26.1391]
[1757147222417,0.001,4305.4,4305.3,26.635]
[1757147223835,0.001,4305.4,4305.3,12.135]
[1757147224324,0.001,4305.4,4305.3,26.635]
[1757147225400,0.001,4305.4,4305.3,26.1391]
[1757147226599,0.001,4305.4,4305.3,25.7021]
[1757147227857,3.88386456,4305.4,4305.3,7.049]
[1757147228014,4.66591511,4305.4,4305.3,10.901]
[1757147232047,4.66591511,4305.4,4305.3,10.903]
[1757147234063,11.68591511,4305.4,4305.3,10.903]
[1757147242252,10.74551511,4305.4,4305.3,10.903]
[1757147242898,11.68001511,4305.4,4305.3,10.903]
[1757147244078,10.44751511,4305.4,4305.3,11.1972]
[1757147244606,10.44751511,4305.4,4305.3,10.903]
[1757147251876,10.44751511,4305.4,4305.3,11.1972]
[1757147253037,10.44751511,4305.4,4305.3,10.903]
[1757147253838,19.28569081,4305.4,4305.3,10.902]
[1757147255408,14.67841511,4305.4,4305.3,10.902]
[1757147260222,13.44751511,4305.4,4305.3,10.902]
[1757147260663,14.62961511,4305.4,4305.3,10.902]
[1757147269458,14.62961511,4305.4,4305.3,7.049]
[1757147270006,14.62961511,4305.4,4305.3,10.9]
[1757147270352,14.62961511,4305.4,4305.3,7.049]
[1757147270562,14.62961511,4305.4,4305.3,10.9]
[1757147272864,14.16921511,4305.4,4305.3,10.9]
[1757147273065,13.73481511,4305.4,4305.3,10.9]
[1757147274166,14.16921511,4305.4,4305.3,10.9]
[1757147276906,14.16921511,4305.4,4305.3,10.899]
[1757147279483,14.62961511,4305.4,4305.3,10.899]
[1757147287223,14.19521511,4305.4,4305.3,10.899]
[1757147287424,13.44751511,4305.4,4305.3,11.2041]
[1757147288017,13.44751511,4305.4,4305.3,10.899]
[1757147290394,14.71211511,4305.4,4305.3,10.897]
[1757147291438,14.71211511,4305.4,4305.3,7.049]
[1757147291597,14.71211511,4305.4,4305.3,10.897]
[1757147292224,14.71211511,4305.4,4305.1,0.004]
[1757147292225,6.2307185,4305.3,4305.1,0.004]
[1757147292392,7.94367883,4305.3,4305.2,10.895]
[1757147292590,9.20827883,4305.3,4305.2,10.895]
[1757147293317,9.90513565,4305.3,4305.2,10.895]
[1757147295630,9.90513565,4305.3,4304.2,6.712668]
[1757147295631,3.11525813,4304.3,4304.2,6.712668]
[1757147295832,3.11525813,4304.3,4304.2,14.2023]
[1757147296043,3.11525813,4304.3,4304.2,13.7452]
[1757147296715,3.11525813,4304.3,4304.2,17.5932]
[1757147298137,6.11525813,4304.3,4304.2,11.746]
[1757147298342,6.11525813,4304.3,4304.2,17.303]
[1757147298343,6.72878705,4304.3,4304.2,17.303]
[1757147299036,7.42575235,4304.3,4304.2,17.303]
[1757147301051,7.42575235,4304.3,4304.2,17.5942]
[1757147305335,6.81222343,4304.3,4304.2,17.5942]
[1757147305539,6.02022343,4304.3,4304.2,18.4999]
[1757147305744,6.81222343,4304.3,4304.2,18.4999]
[1757147308352,6.81222343,4304.3,4304.2,18.0428]
[1757147309064,6.81222343,4304.3,4304.2,18.4999]
[1757147309230,4.4889653,4304.3,4304.2,18.4999]
[1757147309659,6.81222343,4304.3,4304.2,18.4999]
[1757147311264,6.81222343,4304.3,4304.2,17.5942]
[1757147316971,6.81322343,4304.3,4304.2,17.5942]
[1757147322532,0.001,4304.3,4304.2,18.4959]
[1757147322735,0.001,4304.3,4304.2,17.306]
[1757147323134,0.748,4304.3,4304.2,17.306]
[1757147324785,3.86325813,4304.3,4304.2,17.306]
[1757147327281,3.86325813,4304.3,4304.2,13.454]
[1757147327483,3.86325813,4304.3,4304.2,17.306]
[1757147328059,3.41795813,4304.3,4304.2,17.306]
[1757147331358,3.86325813,4304.3,4304.2,17.306]
[1757147331565,4.35665813,4304.3,4304.2,17.306]
[1757147332850,3.86325813,4304.3,4304.2,17.306]
[1757147334389,1.0947,4304.3,4304.2,17.306]
[1757147334687,0.793,4304.3,4304.2,17.306]
[1757147341984,4.83183379,4304.3,4304.2,13.454]
[1757147342208,4.83183379,4304.3,4304.2,17.303]
[1757147342914,5.52870842,4304.3,4304.2,17.303]
[1757147344531,1.96505029,4304.3,4304.2,17.303]
[1757147344827,4.28830842,4304.3,4304.2,17.303]
[1757147353015,5.03790842,4304.3,4304.2,17.303]
[1757147354316,4.59200842,4304.3,4304.2,17.303]
[1757147354515,4.28830842,4304.3,4304.2,17.303]
[1757147355534,5.03790842,4304.3,4304.2,17.303]
[1757147356807,4.28830842,4304.3,4304.2,17.303]
[1757147358745,4.28830842,4304.3,4304.2,17.5926]
[1757147359244,4.28830842,4304.3,4304.2,17.303]
[1757147366247,1.96505029,4304.3,4304.2,17.303]
[1757147366450,1.48987463,4304.3,4304.2,17.5926]
[1757147366955,3.81313276,4304.3,4304.2,17.5926]
[1757147367822,1.48987463,4304.3,4304.2,17.5926]
[1757147368764,3.81313276,4304.3,4304.2,17.5926]
[1757147368971,1.48987463,4304.3,4304.2,17.5926]
[1757147369465,1.48987463,4304.3,4304.2,18.5274]
[1757147369466,0.793,4304.3,4304.2,18.5274]
[1757147370149,0.793,4304.3,4304.2,17.5926]
[1757147379879,0.793,4304.3,4304.2,18.5139]
[1757147380082,0.793,4304.3,4304.2,17.5926]
[1757147380281,0.793,4304.3,4304.2,17.303]
[1757147380690,0.793,4304.3,4304.2,17.6147]
[1757147380997,1.5508,4304.3,4304.2,31.803]
[1757147381205,2.0202,4304.3,4304.2,31.803]
[1757147382376,1.5508,4304.3,4304.2,31.803]
[1757147382601,0.793,4304.3,4304.2,17.303]
[1757147386612,0.793,4304.3,4304.2,31.803]
[1757147386975,0.793,4304.3,4304.2,32.1147]
[1757147387175,0.793,4304.3,4304.2,13.454]
[1757147387417,0.793,4304.3,4304.2,17.6147]
[1757147387613,1.48980827,4304.3,4304.2,17.6147]
[1757147387977,1.48980827,4304.3,4304.2,17.303]
[1757147391325,1.48980827,4304.3,4304.2,31.803]
[1757147394719,1.48980827,4304.3,4304.2,17.303]
[1757147399805,1.48980827,4304.3,4304.2,31.803]
[1757147400646,0.81380827,4304.3,4304.2,35.35931211]
[1757147400811,0.117,4304.3,4304.2,36.05603461]
[1757147401243,0.117,4304.3,4304.2,33.7327225]
[1757147401562,0.117,4304.3,4304.2,36.05603461]
[1757147403606,0.117,4304.3,4304.2,35.13473461]
[1757147403805,0.117,4304.3,4304.2,32.8114225]
[1757147404038,0.117,4304.3,4304.2,35.13473461]
[1757147404534,0.117,4304.3,4304.2,35.56363461]
[1757147404836,0.117,4304.3,4304.2,36.22977804]
[1757147408403,0.117,4304.3,4304.2,35.80087804]
[1757147408754,0.001,4304.3,4304.2,69.34577804]
[1757147410005,0.001,4304.3,4304.2,62.93877804]
[1757147411648,0.001,4304.3,4304.2,55.89177804]
[1757147415468,0.001,4304.3,4304.2,72.11677804]
[1757147417107,0.001,4304.3,4304.2,62.93677804]
[1757147417420,0.001,4304.3,4304.2,57.59977804]
[1757147417919,1e-08,4305.2,4305.1,2.32282641]
[1757147418132,1e-08,4305.2,4305.1,39.19405467]
[1757147418290,1e-08,4305.2,4305.1,40.40602641]
[1757147418490,1e-08,4305.2,4305.1,54.90602641]
[1757147418691,1e-08,4305.2,4305.1,54.99886841]
[1757147419309,0.026,4305.8,4305.7,2.32250272]
[1757147419498,0.026,4305.8,4305.7,39.17050272]
[1757147419699,0.026,4305.8,4305.7,40.40570272]
[1757147419921,0.026,4305.8,4305.7,40.4985417]
[1757147420107,0.026,4305.8,4305.7,54.9985417]
[1757147420284,0.026,4305.8,4305.7,54.0563417]
[1757147422729,0.026,4305.8,4305.7,54.9985417]
[1757147423226,0.026,4305.8,4305.7,54.5156417]
[1757147423524,0.026,4305.8,4305.7,54.0563417]
[1757147424790,0.026,4305.8,4305.7,24.0563417]
[1757147425294,0.026,4305.8,4305.7,54.0563417]
[1757147425540,0.026,4305.8,4305.7,70.2763417]
[1757147425741,1e-08,4305.8,4305.7,70.7592417]
[1757147425945,1e-08,4305.8,4305.7,71.2185417]
[1757147426943,1e-08,4305.8,4305.7,70.7356417]
[1757147427113,1e-08,4305.8,4305.7,70.2763417]
[1757147427834,1e-08,4305.8,4305.7,61.2153417]
[1757147430455,1e-08,4305.8,4305.7,54.1723417]
[1757147435456,1e-08,4305.8,4305.7,70.3903417]
[1757147435955,1e-08,4305.8,4305.7,40.3903417]
[1757147436293,1e-08,4305.8,4305.7,70.3903417]
[1757147436489,0.77000001,4305.8,4305.7,70.0973417]
[1757147436813,1.22700001,4305.8,4305.7,70.0973417]
[1757147437011,0.31520001,4305.8,4305.7,40.0973417]
[1757147437188,1.22700001,4305.8,4305.7,70.0973417]
[1757147438222,0.77220001,4305.8,4305.7,70.0973417]
[1757147438606,1e-08,4305.8,4305.7,70.0973417]
[1757147438807,0.31520001,4305.8,4305.7,70.0973417]
[1757147439002,0.77220001,4305.8,4305.7,70.0973417]
[1757147440241,0.77220001,4305.8,4305.7,55.5863417]
[1757147440453,0.77220001,4305.8,4305.7,53.8793417]
[1757147441418,1.26130001,4305.8,4305.7,53.8773417]
[1757147444122,0.78990001,4305.8,4305.7,53.8773417]
[1757147444581,1e-08,4305.8,4305.7,53.8773417]
[1757147445539,1e-08,4305.8,4305.7,70.0953417]
[1757147446511,1e-08,4305.8,4305.7,60.9193417]
[1757147447686,0.47470001,4305.8,4305.7,60.9193417]
[1757147448119,1e-08,4305.8,4305.7,55.8789417]
[1757147448292,1e-08,4305.8,4305.7,54.1719417]
[1757147449414,1e-08,4305.8,4305.7,24.1719417]
[1757147449887,1e-08,4305.8,4305.7,54.1719417]
[1757147455552,1e-08,4305.8,4305.7,70.3899417]
[1757147456057,1e-08,4305.8,4305.7,70.0953417]
[1757147456257,0.77750001,4305.8,4305.7,70.0953417]
[1757147456655,0.77750001,4305.8,4305.7,40.0953417]
[1757147456656,1e-08,4305.8,4305.7,40.0953417]
[1757147456880,1e-08,4305.8,4305.7,70.0953417]
[1757147457417,1.24890001,4305.8,4305.7,70.0953417]
[1757147457940,1.24890001,4305.8,4305.7,66.2493417]
[1757147458145,1.24890001,4305.8,4305.7,70.0943417]
[1757147458616,1.24890001,4305.8,4305.7,40.0943417]
[1757147458822,1.24890001,4305.8,4305.7,70.0943417]
[1757147462220,1.24890001,4305.8,4305.7,67.3203417]
[1757147462433,1.24890001,4305.8,4305.7,60.9183417]
[1757147465325,1.24890001,4305.8,4305.7,63.6923417]
[1757147465666,1.24890001,4305.8,4305.7,70.0943417]
[1757147465826,1.24890001,4305.8,4305.7,40.0943417]
[1757147466159,1.24890001,4305.8,4305.7,70.0943417]
[1757147466987,1e-08,4305.8,4305.7,70.0943417]
[1757147468976,1e-08,4305.8,4305.7,40.0943417]
[1757147469277,1e-08,4305.8,4305.7,70.0943417]
[1757147469674,1e-08,4305.8,4305.7,70.3988417]
[1757147469849,1e-08,4305.8,4305.7,67.6248417]
[1757147470179,1e-08,4305.8,4305.7,54.1808417]
[1757147470477,0.001,4306.0,4305.9,2.32239485]
[1757147470672,0.001,4306.0,4305.9,36.19061879]
[1757147470878,0.001,4306.0,4305.9,36.47189485]
[1757147471050,0.001,4306.0,4305.9,50.97189485]
[1757147471250,0.001,4306.0,4305.9,51.0647306]
[1757147471450,0.001,4306.3,4306.2,2.32223305]
[1757147471639,0.001,4306.3,4306.2,39.19045538]
[1757147471843,0.001,4306.3,4306.2,40.50183305]
[1757147472041,0.001,4306.3,4306.2,55.09465135]
[1757147472646,0.001,4306.3,4306.2,54.18055135]
[1757147473981,0.001,4306.3,4306.2,50.33555135]
[1757147474292,1.2485,4306.3,4306.2,53.87605135]
[1757147475143,1.2485,4306.3,4306.2,23.87605135]
[1757147475339,1.2485,4306.3,4306.2,26.65005135]
[1757147475645,1.2485,4306.3,4306.2,70.09405135]
[1757147475844,1.2485,4306.3,4306.2,63.24905135]
[1757147476043,1.2485,4306.3,4306.2,67.09405135]
[1757147476276,1.2485,4306.3,4306.2,70.09405135]
[1757147476881,1.2485,4306.3,4306.2,66.24905135]
[1757147477068,1.2485,4306.3,4306.2,67.09405135]
[1757147492417,1.2485,4306.3,4306.2,37.09405135]
[1757147492618,1.2485,4306.3,4306.2,67.09405135]
[1757147498353,0.7917,4306.3,4306.2,67.09405135]
[1757147498505,0.7683,4306.3,4306.2,67.09405135]
[1757147498831,0.001,4306.3,4306.2,67.39855135]
[1757147499825,0.001,4306.3,4306.2,37.39855135]
[1757147500032,0.001,4306.3,4306.2,67.39855135]
[1757147501835,0.001,4306.3,4306.2,67.09405135]
[1757147502931,0.001,4306.3,4306.2,37.09405135]
[1757147503152,0.001,4306.3,4306.2,67.09405135]
[1757147504830,1.2087,4306.3,4306.2,67.09405135]
[1757147519850,0.7277,4306.3,4306.2,67.09405135]
[1757147520221,0.001,4306.3,4306.2,67.40355135]
[1757147520559,0.001,4306.3,4306.2,68.31125135]
[1757147521567,0.001,4306.3,4306.2,67.40355135]
[1757147522530,0.001,4306.3,4306.2,37.40355135]
[1757147522731,0.001,4306.3,4306.2,67.40355135]
[1757147525541,0.001,4306.3,4306.2,67.09405135]
[1757147525941,0.001,4306.3,4306.2,67.40355135]
[1757147528550,0.001,4306.3,4306.2,68.31125135]
[1757147529707,0.001,4306.3,4306.2,41.31125135]
[1757147530007,0.001,4306.3,4306.2,71.31125135]
[1757147530401,0.001,4306.3,4306.2,68.53725135]
[1757147532170,0.001,4306.3,4306.2,56.80025135]
[1757147532386,0.001,4306.3,4306.2,55.09325135]
[1757147533064,0.2935,4306.3,4306.2,53.87605135]
[1757147533251,0.001,4306.3,4306.2,53.87605135]
[1757147533752,0.2935,4306.3,4306.2,53.87605135]
[1757147533952,1.2345,4306.3,4306.2,50.76005135]
[1757147535483,1.2345,4306.3,4306.2,66.97805135]
[1757147543204,1.2345,4306.3,4306.2,36.97805135]
[1757147543385,1.2345,4306.3,4306.2,66.97805135]
[1757147546187,0.001,4306.3,4306.2,70.29185135]
[1757147552924,0.001,4306.3,4306.2,69.97805135]
[1757147553213,0.2935,4306.3,4306.2,69.97805135]
[1757147553410,0.001,4306.3,4306.2,70.29185135]
[1757147553612,0.001,4306.3,4306.2,69.97805135]
[1757147554515,0.001,4306.3,4306.2,39.97805135]
[1757147554716,0.001,4306.3,4306.2,69.97805135]
[1757147557622,0.001,4306.3,4306.2,39.97805135]
[1757147557828,0.001,4306.3,4306.2,69.97805135]
[1757147559830,0.7774,4306.3,4306.2,69.97805135]
[1757147560905,1.234,4306.3,4306.2,60.8108183]
[1757147561108,1.234,4306.3,4306.2,34.563]
[1757147561109,1.3575,4306.3,4306.2,34.563]
[1757147561420,1.4735,4306.3,4306.2,36.88523305]
[1757147562010,1.35,4306.3,4306.2,36.88523305]
[1757147564542,1.35,4306.3,4306.2,34.563]
[1757147568826,1.35,4306.3,4306.2,36.88523305]
[1757147569370,0.117,4306.3,4306.2,36.88523305]
[1757147570828,0.8934,4306.3,4306.2,36.88523305]
[1757147573834,0.117,4306.3,4306.2,36.88523305]
[1757147574534,0.4321,4306.3,4306.2,36.88523305]
[1757147574772,1.35,4306.3,4306.2,36.88523305]
[1757147580066,0.117,4306.3,4306.2,36.88523305]
[1757147580768,0.117,4306.3,4306.2,37.18903305]
[1757147581727,0.117,4306.3,4306.2,36.88523305]
[1757147582866,0.8887,4306.3,4306.2,36.88523305]
[1757147583030,1.35,4306.3,4306.2,36.88523305]
[1757147583948,1.35,4306.3,4306.2,34.563]
[1757147585070,1.35,4306.3,4306.2,36.88523305]
[1757147585273,1.35,4306.3,4306.2,34.563]
[1757147586681,1.35,4306.3,4306.2,36.88523305]
[1757147586837,1.35,4306.3,4306.2,34.563]
[1757147587333,1.35,4306.3,4306.2,36.88523305]
[1757147587534,1.35,4306.3,4306.2,34.563]
[1757147587735,1.35,4306.3,4306.2,36.88523305]
[1757147587934,1.35,4306.3,4306.2,34.563]
[1757147588130,1.35,4306.3,4306.2,36.88523305]
[1757147588570,1.35,4306.3,4306.2,34.563]
[1757147589706,1.35,4306.3,4306.2,36.88523305]
[1757147592501,0.4321,4306.3,4306.2,36.88523305]
[1757147593494,0.117,4306.3,4306.2,36.88523305]
[1757147597517,0.8381,4306.3,4306.2,34.563]
[1757147597725,2.0068,4306.3,4306.2,30.718]
[1757147597880,2.0068,4306.3,4306.2,34.563]
[1757147598081,2.20758,4306.3,4306.2,34.563]
[1757147598415,2.20758,4306.3,4306.2,20.063]
[1757147599605,2.20758,4306.3,4306.2,17.289]
[1757147601315,1.27938,4306.3,4306.2,17.289]
[1757147602420,1.71488,4306.3,4306.2,17.289]
[1757147603695,2.20758,4306.3,4306.2,17.289]
[1757147603892,2.20758,4306.3,4306.2,13.444]
[1757147604083,2.20758,4306.3,4306.2,17.289]
[1757147604400,5.22625517,4306.3,4306.2,17.289]
[1757147604579,8.22625517,4306.3,4306.2,17.289]